fUSD/lending_fUSD_20260611
["ID","MTS","AMOUNT","RATE_DAILY","PERIOD"]
[424808514,1781177439000,-643.0,8.59e-05,2]
[424808513,1781177439000,-643.0,8.59e-05,2]
[424808495,1781177439000,-180.16190752,8.59e-05,2]
[424808539,1781177439000,-500.0,8.59e-05,2]
[424808559,1781177439000,-337.0775293,8.59e-05,2]
[424808548,1781177439000,-500.0,8.59e-05,2]
[424808580,1781177439000,-172.5,9.673e-05,2]
[424808582,1781177439000,-172.5,9.673e-05,2]
[424808583,1781177439000,-500.0,9.899e-05,2]
[424808577,1781177439000,-180.11,9.589e-05,2]
[424808581,1781177439000,-172.5,9.673e-05,2]
[424808579,1781177439000,-500.0,9.625e-05,2]
[424808578,1781177439000,-1600.0,9.605e-05,2]
[424808584,1781177439000,-1000.0,9.999e-05,2]
[424808586,1781177439000,-4000.0,0.00010027,2]
[424808596,1781177439000,-500.0,0.00010202,2]
[424808585,1781177439000,-163.65,0.0001,2]
[424808576,1781177439000,-166.66,9.527e-05,2]
[424808587,1781177439000,-180.11,0.00010046,2]
[424808590,1781177439000,-500.0,0.00010202,2]
[424808589,1781177439000,-500.0,0.00010202,2]
[424808594,1781177439000,-500.0,0.00010202,2]
[424808592,1781177439000,-500.0,0.00010202,2]
[424808595,1781177439000,-500.0,0.00010202,2]
[424808593,1781177439000,-500.0,0.00010202,2]
[424808598,1781177439000,-500.0,0.00010202,2]
[424808599,1781177439000,-500.0,0.00010202,2]
[424808597,1781177439000,-500.0,0.00010202,2]
[424808600,1781177439000,-500.0,0.00010202,2]
[424808547,1781177439000,-643.0,8.59e-05,2]
[424808588,1781177439000,-500.0,0.00010173,2]
[424808575,1781177439000,-308.06930319,9.433e-05,2]
[424808591,1781177439000,-500.0,0.00010202,2]
[424808572,1781177439000,-166.66,9.257e-05,2]
[424808574,1781177439000,-736.0,9.397e-05,2]
[424808545,1781177439000,-500.0,8.59e-05,2]
[424808543,1781177439000,-500.0,8.59e-05,2]
[424808540,1781177439000,-500.0,8.59e-05,2]
[424808542,1781177439000,-500.0,8.59e-05,2]
[424808541,1781177439000,-500.0,8.59e-05,2]
[424808550,1781177439000,-500.0,8.59e-05,2]
[424808549,1781177439000,-500.0,8.59e-05,2]
[424808552,1781177439000,-500.0,8.59e-05,2]
[424808553,1781177439000,-500.0,8.59e-05,2]
[424808556,1781177439000,-500.0,8.59e-05,2]
[424808554,1781177439000,-500.0,8.59e-05,2]
[424808555,1781177439000,-500.0,8.59e-05,2]
[424808551,1781177439000,-659.48220851,8.59e-05,2]
[424808558,1781177439000,-500.0,8.59e-05,2]
[424808571,1781177439000,-2000.0,9.247e-05,2]
[424808570,1781177439000,-180.11,9.132e-05,2]
[424808568,1781177439000,-500.0,9.077e-05,2]
[424808564,1781177439000,-166.66,8.987e-05,2]
[424808566,1781177439000,-2002.019109,9.041e-05,2]
[424808573,1781177439000,-500.0,9.351e-05,2]
[424808562,1781177439000,-500.0,8.803e-05,2]
[424808560,1781177439000,-180.11,8.676e-05,2]
[424808561,1781177439000,-166.66,8.717e-05,2]
[424808557,1781177439000,-500.0,8.59e-05,2]
[424808563,1781177439000,-250.0,8.859e-05,2]
[424808642,1781177440000,-500.0,0.00010958,2]
[424808636,1781177440000,-20540.24276242,0.000109,2]
[424808638,1781177440000,-1139.30013715,0.00010906,2]
[424808637,1781177440000,-2083.20542946,0.000109,2]
[424808635,1781177440000,-1139.30013715,0.00010889,2]
[424808641,1781177440000,-1139.30013715,0.00010957,2]
[424808640,1781177440000,-1139.30013715,0.0001094,2]
[424808639,1781177440000,-1139.30013715,0.00010924,2]
[424808633,1781177440000,-1139.30013715,0.00010852,2]
[424808634,1781177440000,-1139.30013715,0.00010871,2]
[424808644,1781177440000,-500.0,0.00010958,2]
[424808632,1781177440000,-1139.30013715,0.00010833,2]
[424808646,1781177440000,-500.0,0.00010958,2]
[424808660,1781177440000,-180.11,0.00010959,2]
[424808652,1781177440000,-500.0,0.00010958,2]
[424808643,1781177440000,-500.0,0.00010958,2]
[424808654,1781177440000,-500.0,0.00010958,2]
[424808653,1781177440000,-500.0,0.00010958,2]
[424808650,1781177440000,-500.0,0.00010958,2]
[424808645,1781177440000,-500.0,0.00010958,2]
[424808649,1781177440000,-500.0,0.00010958,2]
[424808648,1781177440000,-500.0,0.00010958,2]
[424808651,1781177440000,-500.0,0.00010958,2]
[424808656,1781177440000,-150.0,0.00010959,2]
[424808666,1781177440000,-4000.0,0.0001103,2]
[424808630,1781177440000,-1600.0,0.00010806,2]
[424808647,1781177440000,-500.0,0.00010958,2]
[424808631,1781177440000,-1139.30013715,0.00010813,2]
[424808606,1781177440000,-4000.0,0.00010278,2]
[424808627,1781177440000,-1139.30013715,0.00010772,2]
[424808607,1781177440000,-1026.831814,0.00010318,2]
[424808657,1781177440000,-166.66,0.00010959,2]
[424808604,1781177440000,-1139.30013715,0.00010213,2]
[424808605,1781177440000,-2000.0,0.00010274,2]
[424808601,1781177440000,-500.0,0.00010202,2]
[424808602,1781177440000,-500.0,0.00010202,2]
[424808603,1781177440000,-233.24958669,0.00010202,2]
[424808609,1781177440000,-1252.0,0.00010336,2]
[424808608,1781177440000,-1079.781118,0.00010318,2]
[424808612,1781177440000,-1139.30013715,0.00010432,2]
[424808611,1781177440000,-1139.30013715,0.00010368,2]
[424808613,1781177440000,-500.0,0.00010447,2]
[424808626,1781177440000,-1139.30013715,0.0001075,2]
[424808616,1781177440000,-1139.30013715,0.00010523,2]
[424808615,1781177440000,-180.11,0.00010502,2]
[424808618,1781177440000,-1139.30013715,0.00010559,2]
[424808617,1781177440000,-4000.0,0.00010529,2]
[424808619,1781177440000,-1139.30013715,0.00010593,2]
[424808624,1781177440000,-500.0,0.00010721,2]
[424808622,1781177440000,-1139.30013715,0.00010678,2]
[424808625,1781177440000,-1139.30013715,0.00010727,2]
[424808623,1781177440000,-1139.30013715,0.00010703,2]
[424808621,1781177440000,-1139.30013715,0.00010651,2]
[424808620,1781177440000,-1139.30013715,0.00010623,2]
[424808628,1781177440000,-4000.0,0.00010779,2]
[424808629,1781177440000,-1139.30013715,0.00010793,2]
[424808614,1781177440000,-1139.30013715,0.00010481,2]
[424808663,1781177440000,-500.0,0.00010995,2]
[424808610,1781177440000,-1050.752507,0.00010348,2]
[424808661,1781177440000,-1139.30013715,0.00010973,2]
[424808694,1781177440000,-1139.30013715,0.00011218,2]
[424808695,1781177440000,-1139.30013715,0.0001123,2]
[424808697,1781177440000,-155.04,0.00011233,2]
[424808703,1781177440000,-1139.30013715,0.00011276,2]
[424808700,1781177440000,-1139.30013715,0.00011253,2]
[424808705,1781177440000,-1485.40333443,0.00011288,2]
[424808701,1781177440000,-1139.30013715,0.00011265,2]
[424808706,1781177440000,-1139.30013715,0.00011288,2]
[424808702,1781177440000,-500.0,0.00011269,2]
[424808698,1781177440000,-1139.30013715,0.00011242,2]
[424808707,1781177440000,-166.66,0.00011288,2]
[424808709,1781177440000,-160.0,0.0001132,2]
[424808692,1781177440000,-1139.30013715,0.00011206,2]
[424808710,1781177440000,-2129.0,0.00011374,2]
[424808712,1781177440000,-166.66,0.00011397,2]
[424808722,1781177440000,-180.11,0.00011872,2]
[424808719,1781177440000,-14297.61484587,0.0001177,2]
[424808708,1781177440000,-2000.0,0.00011301,2]
[424808713,1781177440000,-180.11,0.00011416,2]
[424808718,1781177440000,-500.0,0.00011757,2]
[424808714,1781177440000,-3714.34,0.00011507,2]
[424808716,1781177440000,-500.0,0.00011543,2]
[424808715,1781177440000,-166.66,0.00011507,2]
[424808717,1781177440000,-648.32862608,0.00011717,2]
[424808721,1781177440000,-175.0,0.00011817,2]
[424808655,1781177440000,-150.0,0.00010959,2]
[424808720,1781177440000,-500.0,0.00011817,2]
[424808688,1781177440000,-1139.30013715,0.00011169,2]
[424808723,1781177440000,-10600.0,0.000119,4]
[424808686,1781177440000,-1139.30013715,0.00011143,2]
[424808658,1781177440000,-2123.92,0.00010959,2]
[424808662,1781177440000,-1139.30013715,0.00010988,2]
[424808659,1781177440000,-186.7,0.00010959,2]
[424808664,1781177440000,-1139.30013715,0.00011004,2]
[424808665,1781177440000,-1139.30013715,0.00011019,2]
[424808667,1781177440000,-1139.30013715,0.00011034,2]
[424808668,1781177440000,-20540.24276242,0.00011045,2]
[424808669,1781177440000,-1139.30013715,0.00011048,2]
[424808687,1781177440000,-1139.30013715,0.00011156,2]
[424808676,1781177440000,-14297.61484593,0.00011099,2]
[424808673,1781177440000,-1139.30013715,0.0001109,2]
[424808670,1781177440000,-1139.30013715,0.00011062,2]
[424808675,1781177440000,-500.0,0.00011098,2]
[424808677,1781177440000,-14297.61484587,0.00011099,2]
[424808671,1781177440000,-166.66,0.00011068,2]
[424808683,1781177440000,-1139.30013715,0.00011104,2]
[424808672,1781177440000,-1139.30013715,0.00011076,2]
[424808684,1781177440000,-1139.30013715,0.00011117,2]
[424808689,1781177440000,-166.66,0.00011178,2]
[424808691,1781177440000,-1139.30013715,0.00011194,2]
[424808685,1781177440000,-1139.30013715,0.0001113,2]
[424808682,1781177440000,-250.0,0.00011099,2]
[424808679,1781177440000,-14297.61484587,0.00011099,2]
[424808690,1781177440000,-1139.30013715,0.00011181,2]
[424808680,1781177440000,-14297.61484587,0.00011099,2]
[424808678,1781177440000,-14297.61484587,0.00011099,2]
[424808674,1781177440000,-500.0,0.00011098,2]
[424808681,1781177440000,-2000.0,0.00011099,2]
[424808760,1781177441000,-299.60307495,0.00013404,2]
[424808762,1781177441000,-299.60307495,0.00013419,2]
[424808763,1781177441000,-150.0,0.0001342,2]
[424808757,1781177441000,-203.85144979,0.00013389,2]
[424808765,1781177441000,-150.0,0.00013425,2]
[424808758,1781177441000,-299.60307495,0.00013389,2]
[424808759,1781177441000,-150.0,0.00013389,2]
[424808754,1781177441000,-150.0,0.00013389,2]
[424808755,1781177441000,-150.0,0.00013389,2]
[424808756,1781177441000,-150.0,0.00013389,2]
[424808764,1781177441000,-150.0,0.00013423,2]
[424808779,1781177441000,-299.60307495,0.00013494,2]
[424808775,1781177441000,-299.60307495,0.00013479,2]
[424808767,1781177441000,-150.0,0.0001344,2]
[424808766,1781177441000,-299.60307495,0.00013434,2]
[424808776,1781177441000,-150.0,0.00013482,2]
[424808768,1781177441000,-299.60307495,0.00013449,2]
[424808773,1781177441000,-299.60307495,0.00013464,2]
[424808770,1781177441000,-150.0,0.00013457,2]
[424808774,1781177441000,-150.0,0.00013466,2]
[424808769,1781177441000,-150.0,0.00013451,2]
[424808771,1781177441000,-500.0,0.00013461,2]
[424808772,1781177441000,-150.0,0.00013462,2]
[424808753,1781177441000,-150.0,0.00013389,2]
[424808761,1781177441000,-150.0,0.00013415,2]
[424808750,1781177441000,-150.0,0.00013389,2]
[424808734,1781177441000,-180.11,0.00012329,2]
[424808752,1781177441000,-150.0,0.00013389,2]
[424808777,1781177441000,-150.0,0.0001349,2]
[424808729,1781177441000,-500.0,0.00012091,2]
[424808727,1781177441000,-20540.24276242,0.00012009,2]
[424808724,1781177441000,-199.5,0.0001195,2]
[424808726,1781177441000,-1600.0,0.00012006,2]
[424808725,1781177441000,-230.34035204,0.00011966,2]
[424808730,1781177441000,-648.32862605,0.00012248,2]
[424808728,1781177441000,-48317.9,0.00012055,2]
[424808731,1781177441000,-944.18813705,0.00012277,2]
[424808733,1781177441000,-171.13,0.00012329,2]
[424808732,1781177441000,-2000.0,0.00012329,2]
[424808735,1781177441000,-500.0,0.00012365,2]
[424808748,1781177441000,-648.32862605,0.00013309,2]
[424808737,1781177441000,-14297.61484587,0.00012492,2]
[424808739,1781177441000,-3620.0,0.00012511,2]
[424808738,1781177441000,-500.0,0.00012493,2]
[424808740,1781177441000,-500.0,0.00012639,2]
[424808741,1781177441000,-648.32862605,0.00012778,2]
[424808742,1781177441000,-276.0,0.00012877,2]
[424808743,1781177441000,-500.0,0.00012913,2]
[424808744,1781177441000,-20540.24276242,0.00012973,2]
[424808745,1781177441000,-500.0,0.00013187,2]
[424808747,1781177441000,-14297.61484587,0.00013213,2]
[424808749,1781177441000,-150.0,0.00013389,2]
[424808746,1781177441000,-1600.0,0.00013207,2]
[424808751,1781177441000,-150.0,0.00013389,2]
[424808736,1781177441000,-1199.27823509,0.00012411,2]
[424808786,1781177441000,-299.60307495,0.00013524,2]
[424808788,1781177441000,-299.60307495,0.00013539,2]
[424808780,1781177441000,-150.0,0.00013498,2]
[424808814,1781177441000,-150.0,0.0001366,2]
[424808815,1781177441000,-299.60307495,0.0001366,2]
[424808822,1781177441000,-150.0,0.00013693,2]
[424808823,1781177441000,-150.0,0.00013697,2]
[424808819,1781177441000,-150.0,0.00013679,2]
[424808813,1781177441000,-150.0,0.0001366,2]
[424808818,1781177441000,-299.60307495,0.00013675,2]
[424808817,1781177441000,-150.0,0.00013671,2]
[424808816,1781177441000,-150.0,0.00013668,2]
[424808820,1781177441000,-150.0,0.00013687,2]
[424808821,1781177441000,-299.60307495,0.0001369,2]
[424808825,1781177441000,-574.57860626,0.00013698,2]
[424808835,1781177441000,-500.0,0.00013698,2]
[424808824,1781177441000,-500.0,0.00013697,2]
[424808826,1781177441000,-500.0,0.00013698,2]
[424808787,1781177441000,-150.0,0.00013534,2]
[424808827,1781177441000,-500.0,0.00013698,2]
[424808831,1781177441000,-500.0,0.00013698,2]
[424808833,1781177441000,-500.0,0.00013698,2]
[424808830,1781177441000,-500.0,0.00013698,2]
[424808829,1781177441000,-500.0,0.00013698,2]
[424808832,1781177441000,-500.0,0.00013698,2]
[424808834,1781177441000,-500.0,0.00013698,2]
[424808836,1781177441000,-500.0,0.00013698,2]
[424808837,1781177441000,-362.50237529,0.00013698,2]
[424808812,1781177441000,-1199.27823509,0.00013656,2]
[424808805,1781177441000,-150.0,0.0001362,2]
[424808828,1781177441000,-503.31933434,0.00013698,2]
[424808804,1781177441000,-299.60307495,0.00013614,2]
[424808807,1781177441000,-299.60307495,0.00013629,2]
[424808778,1781177441000,-150.0,0.00013492,2]
[424808782,1781177441000,-150.0,0.00013513,2]
[424808781,1781177441000,-299.60307495,0.00013509,2]
[424808785,1781177441000,-150.0,0.00013524,2]
[424808783,1781177441000,-150.0,0.00013517,2]
[424808789,1781177441000,-150.0,0.00013543,2]
[424808797,1781177441000,-299.60307495,0.00013584,2]
[424808794,1781177441000,-299.60307495,0.00013569,2]
[424808792,1781177441000,-150.0,0.00013558,2]
[424808798,1781177441000,-150.0,0.00013592,2]
[424808790,1781177441000,-150.0,0.00013544,2]
[424808793,1781177441000,-150.0,0.00013569,2]
[424808784,1781177441000,-150.0,0.00013524,2]
[424808796,1781177441000,-150.0,0.00013575,2]
[424808806,1781177441000,-150.0,0.00013626,2]
[424808791,1781177441000,-299.60307495,0.00013554,2]
[424808808,1781177441000,-150.0,0.00013637,2]
[424808809,1781177441000,-150.0,0.00013643,2]
[424808803,1781177441000,-150.0,0.00013607,2]
[424808802,1781177441000,-150.0,0.00013606,2]
[424808810,1781177441000,-299.60307495,0.00013644,2]
[424808811,1781177441000,-150.0,0.00013646,2]
[424808801,1781177441000,-150.0,0.00013602,2]
[424808800,1781177441000,-299.60307495,0.00013599,2]
[424808795,1781177441000,-150.0,0.0001357,2]
[424808799,1781177441000,-150.0,0.00013594,2]
[424808858,1781177442000,-500.0,0.00013698,2]
[424808866,1781177442000,-500.0,0.00013698,2]
[424808859,1781177442000,-500.0,0.00013698,2]
[424808877,1781177442000,-500.0,0.00013698,2]
[424808863,1781177442000,-500.0,0.00013698,2]
[424808870,1781177442000,-500.0,0.00013698,2]
[424808867,1781177442000,-500.0,0.00013698,2]
[424808875,1781177442000,-500.0,0.00013698,2]
[424808869,1781177442000,-539.71180244,0.00013698,2]
[424808868,1781177442000,-500.0,0.00013698,2]
[424808872,1781177442000,-539.51,0.00013698,2]
[424808871,1781177442000,-539.51,0.00013698,2]
[424808876,1781177442000,-539.51,0.00013698,2]
[424808882,1781177442000,-539.51,0.00013698,2]
[424808857,1781177442000,-500.0,0.00013698,2]
[424808873,1781177442000,-500.0,0.00013698,2]
[424808855,1781177442000,-500.0,0.00013698,2]
[424808843,1781177442000,-500.0,0.00013698,2]
[424808854,1781177442000,-500.0,0.00013698,2]
[424808840,1781177442000,-500.0,0.00013698,2]
[424808839,1781177442000,-500.0,0.00013698,2]
[424808841,1781177442000,-500.0,0.00013698,2]
[424808838,1781177442000,-500.0,0.00013698,2]
[424808842,1781177442000,-500.0,0.00013698,2]
[424808846,1781177442000,-500.0,0.00013698,2]
[424808847,1781177442000,-500.0,0.00013698,2]
[424808849,1781177442000,-500.0,0.00013698,2]
[424808851,1781177442000,-500.0,0.00013698,2]
[424808845,1781177442000,-500.0,0.00013698,2]
[424808848,1781177442000,-500.0,0.00013698,2]
[424808850,1781177442000,-500.0,0.00013698,2]
[424808852,1781177442000,-500.0,0.00013698,2]
[424808861,1781177442000,-500.0,0.00013698,2]
[424808853,1781177442000,-500.0,0.00013698,2]
[424808856,1781177442000,-500.0,0.00013698,2]
[424808874,1781177442000,-539.51,0.00013698,2]
[424808893,1781177442000,-539.51,0.00013698,2]
[424808881,1781177442000,-504.05769263,0.00013698,2]
[424808895,1781177442000,-539.51,0.00013698,2]
[424808896,1781177442000,-539.51,0.00013698,2]
[424808897,1781177442000,-539.51,0.00013698,2]
[424808904,1781177442000,-539.51,0.00013698,2]
[424808905,1781177442000,-539.57889603,0.00013698,2]
[424808911,1781177442000,-500.0,0.00013698,2]
[424808906,1781177442000,-590.60459875,0.00013698,2]
[424808907,1781177442000,-500.0,0.00013698,2]
[424808909,1781177442000,-500.0,0.00013698,2]
[424808908,1781177442000,-500.0,0.00013698,2]
[424808910,1781177442000,-179.84270164,0.00013698,2]
[424808914,1781177442000,-527.02640831,0.00013698,2]
[424808912,1781177442000,-500.0,0.00013698,2]
[424808915,1781177442000,-500.0,0.00013698,2]
[424808880,1781177442000,-539.51,0.00013698,2]
[424808898,1781177442000,-539.51,0.00013698,2]
[424808903,1781177442000,-539.51,0.00013698,2]
[424808913,1781177442000,-500.0,0.00013698,2]
[424808899,1781177442000,-539.51,0.00013698,2]
[424808894,1781177442000,-539.51,0.00013698,2]
[424808878,1781177442000,-539.51,0.00013698,2]
[424808879,1781177442000,-500.0,0.00013698,2]
[424808884,1781177442000,-539.51,0.00013698,2]
[424808885,1781177442000,-500.0,0.00013698,2]
[424808888,1781177442000,-500.0,0.00013698,2]
[424808891,1781177442000,-579.39543898,0.00013698,2]
[424808883,1781177442000,-500.0,0.00013698,2]
[424808887,1781177442000,-539.51,0.00013698,2]
[424808892,1781177442000,-539.51,0.00013698,2]
[424808890,1781177442000,-500.0,0.00013698,2]
[424808886,1781177442000,-500.0,0.00013698,2]
[424808901,1781177442000,-539.51,0.00013698,2]
[424808900,1781177442000,-539.51,0.00013698,2]
[424808889,1781177442000,-539.51,0.00013698,2]
[424808902,1781177442000,-539.51,0.00013698,2]
[424808950,1781177443000,-500.0,0.00013698,2]
[424808951,1781177443000,-500.0,0.00013698,2]
[424808952,1781177443000,-500.0,0.00013698,2]
[424808948,1781177443000,-238.48508219,0.00013698,2]
[424808947,1781177443000,-451.09713554,0.00013698,2]
[424808943,1781177443000,-500.0,0.00013698,2]
[424808945,1781177443000,-500.0,0.00013698,2]
[424808955,1781177443000,-500.0,0.00013698,2]
[424808944,1781177443000,-247.44478835,0.00013698,2]
[424808949,1781177443000,-500.0,0.00013698,2]
[424808958,1781177443000,-500.0,0.00013698,2]
[424808965,1781177443000,-500.0,0.00013698,2]
[424808954,1781177443000,-500.0,0.00013698,2]
[424808957,1781177443000,-500.0,0.00013698,2]
[424808953,1781177443000,-504.25668169,0.00013698,2]
[424808959,1781177443000,-500.0,0.00013698,2]
[424808960,1781177443000,-500.0,0.00013698,2]
[424808964,1781177443000,-500.0,0.00013698,2]
[424808963,1781177443000,-500.0,0.00013698,2]
[424808961,1781177443000,-500.0,0.00013698,2]
[424808968,1781177443000,-2726.92,0.00013698,2]
[424808946,1781177443000,-500.0,0.00013698,2]
[424808956,1781177443000,-500.0,0.00013698,2]
[424808941,1781177443000,-500.0,0.00013698,2]
[424808919,1781177443000,-500.0,0.00013698,2]
[424808940,1781177443000,-500.0,0.00013698,2]
[424808916,1781177443000,-500.0,0.00013698,2]
[424808917,1781177443000,-500.0,0.00013698,2]
[424808925,1781177443000,-500.0,0.00013698,2]
[424808923,1781177443000,-500.0,0.00013698,2]
[424808920,1781177443000,-500.0,0.00013698,2]
[424808921,1781177443000,-500.0,0.00013698,2]
[424808967,1781177443000,-292.30346816,0.00013698,2]
[424808918,1781177443000,-500.0,0.00013698,2]
[424808924,1781177443000,-500.0,0.00013698,2]
[424808922,1781177443000,-500.0,0.00013698,2]
[424808942,1781177443000,-500.0,0.00013698,2]
[424808926,1781177443000,-500.0,0.00013698,2]
[424808928,1781177443000,-500.0,0.00013698,2]
[424808930,1781177443000,-500.0,0.00013698,2]
[424808929,1781177443000,-500.0,0.00013698,2]
[424808937,1781177443000,-500.0,0.00013698,2]
[424808932,1781177443000,-500.0,0.00013698,2]
[424808931,1781177443000,-500.0,0.00013698,2]
[424808934,1781177443000,-500.0,0.00013698,2]
[424808933,1781177443000,-500.0,0.00013698,2]
[424808939,1781177443000,-500.0,0.00013698,2]
[424808938,1781177443000,-185.2409854,0.00013698,2]
[424808927,1781177443000,-500.0,0.00013698,2]
[424808966,1781177443000,-500.0,0.00013698,2]
[424808962,1781177443000,-500.0,0.00013698,2]
[424808973,1781177443000,-2726.92,0.00013698,2]
[424808997,1781177443000,-500.0,0.00013698,2]
[424808999,1781177443000,-500.0,0.00013698,2]
[424809000,1781177443000,-500.0,0.00013698,2]
[424809002,1781177443000,-500.0,0.00013698,2]
[424809003,1781177443000,-500.0,0.00013698,2]
[424809001,1781177443000,-500.0,0.00013698,2]
[424809005,1781177443000,-492.8427843,0.00013698,2]
[424809007,1781177443000,-500.0,0.00013698,2]
[424809004,1781177443000,-500.0,0.00013698,2]
[424809006,1781177443000,-500.0,0.00013698,2]
[424809008,1781177443000,-500.0,0.00013698,2]
[424809010,1781177443000,-617.58,0.00013698,2]
[424809013,1781177443000,-500.0,0.00013698,2]
[424809017,1781177443000,-500.0,0.00013698,2]
[424809014,1781177443000,-617.58,0.00013698,2]
[424809019,1781177443000,-500.0,0.00013698,2]
[424809015,1781177443000,-500.0,0.00013698,2]
[424809011,1781177443000,-500.0,0.00013698,2]
[424809012,1781177443000,-617.58,0.00013698,2]
[424809018,1781177443000,-617.58,0.00013698,2]
[424809016,1781177443000,-617.58,0.00013698,2]
[424808969,1781177443000,-2726.92,0.00013698,2]
[424809020,1781177443000,-617.58,0.00013698,2]
[424808998,1781177443000,-500.0,0.00013698,2]
[424808994,1781177443000,-500.0,0.00013698,2]
[424809009,1781177443000,-500.0,0.00013698,2]
[424808991,1781177443000,-2727.10955314,0.00013698,2]
[424808976,1781177443000,-2726.92,0.00013698,2]
[424808993,1781177443000,-500.0,0.00013698,2]
[424808971,1781177443000,-2726.92,0.00013698,2]
[424808977,1781177443000,-2726.92,0.00013698,2]
[424808974,1781177443000,-2726.92,0.00013698,2]
[424808970,1781177443000,-2726.92,0.00013698,2]
[424808978,1781177443000,-2726.92,0.00013698,2]
[424808975,1781177443000,-2726.92,0.00013698,2]
[424808980,1781177443000,-2726.92,0.00013698,2]
[424808979,1781177443000,-2726.92,0.00013698,2]
[424808986,1781177443000,-2726.92,0.00013698,2]
[424808982,1781177443000,-2726.92,0.00013698,2]
[424808972,1781177443000,-2726.92,0.00013698,2]
[424808981,1781177443000,-2726.92,0.00013698,2]
[424808996,1781177443000,-500.0,0.00013698,2]
[424808984,1781177443000,-2726.92,0.00013698,2]
[424808989,1781177443000,-2726.92,0.00013698,2]
[424808992,1781177443000,-500.0,0.00013698,2]
[424808990,1781177443000,-2726.92,0.00013698,2]
[424808995,1781177443000,-500.0,0.00013698,2]
[424808985,1781177443000,-2726.92,0.00013698,2]
[424808983,1781177443000,-2726.92,0.00013698,2]
[424808988,1781177443000,-2726.92,0.00013698,2]
[424808987,1781177443000,-2726.92,0.00013698,2]
[424809049,1781177444000,-993.33,0.00013698,2]
[424809059,1781177444000,-660.37,0.00013698,2]
[424809048,1781177444000,-993.33,0.00013698,2]
[424809047,1781177444000,-993.33,0.00013698,2]
[424809052,1781177444000,-993.54036356,0.00013698,2]
[424809055,1781177444000,-660.37,0.00013698,2]
[424809054,1781177444000,-660.37,0.00013698,2]
[424809062,1781177444000,-660.37,0.00013698,2]
[424809050,1781177444000,-993.33,0.00013698,2]
[424809058,1781177444000,-660.37,0.00013698,2]
[424809057,1781177444000,-660.37,0.00013698,2]
[424809060,1781177444000,-660.37,0.00013698,2]
[424809061,1781177444000,-660.37,0.00013698,2]
[424809056,1781177444000,-660.37,0.00013698,2]
[424809063,1781177444000,-660.37,0.00013698,2]
[424809069,1781177444000,-660.37,0.00013698,2]
[424809066,1781177444000,-660.37,0.00013698,2]
[424809070,1781177444000,-660.37,0.00013698,2]
[424809072,1781177444000,-660.37,0.00013698,2]
[424809073,1781177444000,-660.37,0.00013698,2]
[424809067,1781177444000,-660.37,0.00013698,2]
[424809051,1781177444000,-993.33,0.00013698,2]
[424809053,1781177444000,-660.37,0.00013698,2]
[424809043,1781177444000,-993.33,0.00013698,2]
[424809022,1781177444000,-617.58,0.00013698,2]
[424809045,1781177444000,-993.33,0.00013698,2]
[424809065,1781177444000,-660.37,0.00013698,2]
[424809026,1781177444000,-617.58,0.00013698,2]
[424809023,1781177444000,-500.0,0.00013698,2]
[424809021,1781177444000,-500.0,0.00013698,2]
[424809024,1781177444000,-617.58,0.00013698,2]
[424809025,1781177444000,-617.58,0.00013698,2]